bitfinex/quotes_ETHUSD_20241105
["timestamp","ask_amount","ask_price","bid_price","bid_amount"]
[1730823691005,4.08157,2450.1,2449.6,0.8143]
[1730823691386,8.16313,2450.1,2449.6,0.8143]
[1730823691907,4.08156,2450.1,2449.6,0.8143]
[1730823693210,4.08156,2450.1,2449.6,4.89659]
[1730823694077,8.16311,2450.1,2449.6,0.8143]
[1730823694303,4.08155,2450.1,2449.6,0.8143]
[1730823694498,4.88771,2450.3,2449.6,0.8143]
[1730823694499,4.08121,2450.3,2449.7,8.16407]
[1730823694697,4.08121,2450.3,2449.8,4.08194]
[1730823695120,4.08121,2450.3,2449.7,8.16405]
[1730823695337,4.85258,2450.5,2450.0,0.8061]
[1730823695480,5.85223796,2450.5,2450.0,0.8061]
[1730823695722,4.08098,2450.4,2450.0,0.8061]
[1730823696255,4.08098,2450.4,2450.1,0.07603029]
[1730823696860,4.08116,2450.3,2450.1,0.07603029]
[1730823702778,4.08129,2450.2,2450.1,0.07603029]
[1730823703095,4.897535,2450.2,2449.7,5.22678059]
[1730823703232,4.897535,2450.2,2450.1,0.07603029]
[1730823703433,4.897535,2450.2,2449.7,4.90232]
[1730823703675,4.897535,2450.2,2449.8,0.07639868]
[1730823704034,4.897535,2450.2,2449.7,4.90232]
[1730823704236,4.84385,2450.1,2449.8,0.07639868]
[1730823704435,5.8179755,2450.1,2449.5,8.98503]
[1730823704659,8.92546,2450.1,2449.6,0.07664433]
[1730823704981,4.08188,2449.9,2449.6,0.07664433]
[1730823705163,4.08164,2450.0,2449.6,0.07664433]
[1730823705474,8.16408,2449.8,2449.4,0.32439605]
[1730823705681,4.08204,2449.8,2449.5,0.07670788]
[1730823705842,4.08172,2450.0,2449.5,0.07670788]
[1730823706048,4.08181,2449.9,2449.3,4.90288]
[1730823706379,4.08198,2449.8,2449.4,0.07677567]
[1730823707586,4.08214,2449.7,2449.4,0.07677567]
[1730823707946,4.08207,2449.8,2449.2,4.48935984]
[1730823708276,4.08207,2449.8,2449.3,0.32494046]
[1730823708483,4.08214,2449.7,2449.4,0.07195025]
[1730823708855,4.08214,2449.7,2449.1,8.75633119]
[1730823709065,4.08214,2449.7,2449.2,0.39715326]
[1730823709442,4.08231,2449.6,2449.2,0.39715326]
[1730823711449,4.08231,2449.6,2449.2,0.07219598]
[1730823711649,4.08231,2449.6,2449.2,0.39722831]
[1730823711892,4.08208,2449.8,2449.2,0.47887932]
[1730823712183,4.08206,2449.8,2449.3,0.32503233]
[1730823712393,4.08222,2449.7,2449.3,0.32503233]
[1730823712684,4.08222,2449.7,2449.4,0.07195025]
[1730823713183,4.08222,2449.7,2449.3,0.32503233]
[1730823713393,2.1384363,2450.2,2449.6,0.8185]
[1730823713594,0.05,2450.3,2449.8,4.08185]
[1730823713745,4.08116,2450.3,2449.9,0.8185]
[1730823714049,4.08131,2450.2,2449.9,0.88753575]
[1730823714469,4.08115,2450.3,2449.9,0.88753575]
[1730823714669,4.13105,2450.4,2449.9,0.88753575]
[1730823715106,4.08119,2450.3,2449.9,0.88753575]
[1730823715481,4.13105,2450.4,2449.9,0.88753575]
[1730823715808,8.21213,2450.4,2449.9,0.88753575]
[1730823716498,4.08116,2450.3,2449.9,0.88753575]
[1730823716871,4.13105,2450.4,2449.9,0.88753575]
[1730823717063,8.21215,2450.4,2449.9,0.88753575]
[1730823718912,4.08123,2450.3,2449.9,0.88753575]
[1730823720406,4.08114,2450.3,2449.9,0.88753575]
[1730823720633,4.13105,2450.4,2449.9,4.96931575]
[1730823720768,4.13105,2450.4,2449.9,0.88753575]
[1730823721511,8.21211,2450.4,2449.9,4.96931575]
[1730823721897,4.08113,2450.3,2449.9,0.88753575]
[1730823722630,4.08147,2450.1,2449.9,0.88753575]
[1730823722925,4.08131,2450.2,2449.9,0.88753575]
[1730823723130,4.13106,2450.4,2449.9,0.88753575]
[1730823723330,4.08139,2450.2,2449.9,0.88753575]
[1730823723537,4.08122,2450.3,2449.9,0.88753575]
[1730823724594,4.13104,2450.4,2449.9,4.96929575]
[1730823724891,8.2121,2450.4,2449.9,4.96929575]
[1730823725130,4.13104,2450.4,2449.9,0.88753575]
[1730823725501,4.13102,2450.4,2449.9,4.96931575]
[1730823725890,4.08116,2450.3,2449.9,0.88753575]
[1730823726328,4.13098,2450.4,2449.9,0.96916272]
[1730823726632,0.05,2450.4,2450.3,8.78984119]
[1730823726787,0.05,2450.8,2450.5,4.08073]
[1730823727000,0.05,2450.8,2450.5,4.08071]
[1730823727200,2.18897275,2451.1,2450.7,4.88136]
[1730823727450,0.05,2451.1,2450.8,0.7913]
[1730823727602,0.05,2451.1,2450.9,4.08011]
[1730823728038,0.05,2451.1,2451.0,0.06307102]
[1730823728251,6.21821275,2451.5,2451.1,0.7913]
[1730823728619,6.21821275,2451.5,2451.2,0.06282565]
[1730823728857,4.07924,2451.5,2451.2,0.06282565]
[1730823729144,6.21821275,2451.5,2451.2,0.06282565]
[1730823729304,4.07935,2451.4,2451.2,0.06282565]
[1730823729507,4.0793,2451.4,2451.2,0.06282565]
[1730823730452,9.06760665,2451.5,2451.2,0.06282565]
[1730823730621,4.0794,2451.4,2451.2,0.06282565]
[1730823730968,9.06763665,2451.5,2451.2,0.06282565]
[1730823731114,4.07931,2451.4,2451.2,0.06282565]
[1730823731311,4.07946,2451.3,2451.2,0.06282565]
[1730823731740,4.98607666,2451.4,2450.9,4.90042]
[1730823732050,4.07931,2451.4,2451.2,0.06254216]
[1730823732209,4.07931,2451.4,2450.9,4.90042]
[1730823732411,4.07931,2451.4,2451.3,0.0624195]
[1730823732650,4.07931,2451.4,2450.9,4.90042]
[1730823732858,8.15812,2451.6,2451.3,0.0624195]
[1730823733211,4.972492,2451.5,2450.9,4.90033]
[1730823733357,4.07913,2451.5,2450.9,4.89907639]
[1730823733571,4.07913,2451.5,2451.0,0.0628256]
[1730823733722,4.07933,2451.4,2451.0,0.0628256]
[1730823733926,8.15877,2451.4,2451.0,0.0628256]
[1730823734149,0.55,2451.5,2451.0,0.0628256]
[1730823734353,4.0798,2451.1,2451.0,0.0628256]
[1730823735367,4.0798,2451.1,2450.3,4.08102]
[1730823735368,4.0798,2451.1,2450.4,4.08086]
[1730823735532,4.0798,2451.1,2451.0,0.0628256]
[1730823735726,4.07963,2451.2,2450.4,4.16246821]
[1730823735927,4.08026,2450.9,2450.4,8.16174]
[1730823736242,4.08026,2450.9,2450.4,4.08086]
[1730823736448,4.08026,2450.9,2450.5,0.8054]
[1730823736653,4.08038,2450.8,2450.5,0.8054]
[1730823737052,4.08049,2450.7,2450.5,0.8054]
[1730823737461,4.08038,2450.8,2450.5,0.8054]
[1730823739960,4.08057,2450.7,2450.5,0.8054]
[1730823740171,8.16078,2450.8,2450.5,0.8054]
[1730823740539,8.16077,2450.8,2450.5,0.8054]
[1730823740774,4.08054,2450.7,2450.5,0.8054]
[1730823741274,4.08054,2450.7,2450.6,0.06306249]
[1730823742886,4.896632,2450.7,2450.6,0.06306249]
[1730823743178,4.896632,2450.7,2450.2,0.81]
[1730823743384,4.08023,2450.9,2450.6,0.06306249]
[1730823743535,4.07973,2451.2,2450.7,0.7754]
[1730823743737,4.07953,2451.3,2450.7,4.91872822]
[1730823743738,8.15914,2451.3,2450.7,4.91872822]
[1730823743934,4.07953,2451.3,2450.7,4.91872822]
[1730823744140,4.07966,2451.2,2450.7,4.91872822]
[1730823744358,8.15914,2451.3,2450.7,4.91872822]
[1730823744575,4.07972,2451.2,2450.7,0.83834822]
[1730823744780,4.07953,2451.3,2450.7,0.83834822]
[1730823745078,4.07953,2451.3,2450.8,4.08028]
[1730823745283,8.15912,2451.3,2450.9,0.0627028]
[1730823745466,4.07963,2451.2,2450.9,0.0627028]
[1730823745789,4.07963,2451.2,2450.7,4.85586]
[1730823746007,4.07963,2451.2,2451.0,0.0625801]
[1730823746205,4.07963,2451.2,2450.7,4.85586]
[1730823746491,4.07963,2451.2,2450.7,4.93745832]
[1730823746672,4.07963,2451.2,2450.8,0.06282551]
[1730823746873,4.07963,2451.2,2450.7,4.85586]
[1730823747057,4.07963,2451.2,2450.8,0.06282551]
[1730823747264,4.07963,2451.2,2450.7,0.7754]
[1730823747571,1.229663,2451.2,2450.8,0.06282551]
[1730823747764,4.0798,2451.1,2450.8,0.06282551]
[1730823747964,4.0798,2451.1,2450.7,0.7754]
[1730823748208,4.08005,2451.0,2450.9,0.06250818]
[1730823748386,4.08005,2451.0,2450.8,0.06263089]
[1730823748587,4.08005,2451.0,2450.9,0.06250818]
[1730823748987,8.15972,2451.1,2450.7,0.7754]
[1730823749164,8.1597,2451.1,2450.9,0.06245539]
[1730823749363,9.05784,2451.1,2450.8,0.0625781]
[1730823749563,4.97794,2451.1,2450.7,0.7754]
[1730823750304,9.05784,2451.1,2450.7,0.7754]
[1730823750500,4.97794,2451.1,2450.7,0.7754]
[1730823750673,4.0798,2451.1,2450.7,0.7754]
[1730823751419,4.07921,2451.5,2450.9,4.08002]
[1730823751705,4.07921,2451.5,2451.0,4.88406]
[1730823752172,4.07891,2451.7,2451.2,4.88373]
[1730823752492,8.15782,2451.7,2451.2,0.8041]
[1730823752677,4.07891,2451.7,2451.2,0.8041]
[1730823752879,4.07897,2451.6,2451.2,0.8041]
[1730823754084,4.07889,2451.7,2451.2,0.8041]
[1730823754281,4.07899,2451.6,2451.2,0.8041]
[1730823754508,4.07889,2451.7,2451.2,0.8041]
[1730823754897,8.1578,2451.7,2451.2,0.8041]
[1730823755411,4.07888,2451.7,2451.2,0.8041]
[1730823755774,4.07897,2451.6,2451.2,0.8041]
[1730823756110,4.07888,2451.7,2451.3,0.06196466]
[1730823756267,4.07913,2451.6,2451.3,0.06196466]
[1730823756989,4.07916,2451.5,2451.3,0.06196466]
[1730823758233,4.0793,2451.4,2451.3,0.06196466]
[1730823758373,4.895146,2451.4,2451.3,0.06196466]
[1730823758770,4.07966,2451.2,2450.9,0.7658]
[1730823759008,0.815846,2451.4,2450.9,0.7658]
[1730823759009,4.07996,2451.0,2450.9,0.7658]
[1730823759205,4.07996,2451.0,2450.7,0.7715]
[1730823759802,8.15971,2451.1,2450.7,0.7715]
[1730823760004,4.07982,2451.1,2450.7,0.7715]
[1730823760514,4.07998,2451.0,2450.7,0.7715]
[1730823761076,4.08014,2450.9,2450.7,0.7715]
[1730823762125,4.07996,2451.0,2450.7,0.7715]
[1730823762411,4.08017,2450.9,2450.7,0.7715]
[1730823763694,4.07991,2451.1,2450.7,0.7715]
[1730823764023,4.08015,2450.9,2450.7,0.7715]
[1730823764220,4.0803,2450.8,2450.7,0.7715]
[1730823764729,4.08015,2450.9,2450.7,0.7715]
[1730823765221,4.08012,2451.0,2450.7,0.7715]
[1730823765409,4.08015,2450.9,2450.7,0.7715]
[1730823766627,4.0803,2450.8,2450.7,0.7715]
[1730823767133,4.08015,2450.9,2450.7,0.7715]
[1730823768126,8.15986,2451.1,2450.7,0.7715]
[1730823768445,4.07999,2451.0,2450.7,0.7715]
[1730823768724,4.50728492,2451.1,2450.7,0.7715]
[1730823768725,4.08015,2450.9,2450.7,0.7715]
[1730823768946,4.0803,2450.8,2450.4,0.3248754]
[1730823769094,4.08015,2450.9,2450.5,0.8035]
[1730823770490,4.08039,2450.8,2450.5,0.8035]
[1730823770940,4.08039,2450.8,2450.6,0.06281931]
[1730823771456,4.08046,2450.7,2450.6,0.06281931]
[1730823771824,4.08068,2450.6,2450.3,0.8124]
[1730823772041,4.08046,2450.7,2450.3,0.8124]
[1730823772363,4.08046,2450.7,2450.3,1.13745046]
[1730823772649,4.08046,2450.7,2450.3,0.8124]
[1730823773070,1.19227492,2451.1,2450.5,4.86077]
[1730823773071,6.21809839,2451.1,2450.5,4.86077]
[1730823773221,6.21809839,2451.1,2450.5,8.94144]
[1730823773640,4.0799,2451.1,2450.5,8.94148]
[1730823773842,8.15984,2451.1,2450.5,4.86077]
[1730823774046,4.07958,2451.3,2450.7,3.90781119]
[1730823774248,8.15919,2451.3,2450.8,0.86169549]
[1730823774438,4.07957,2451.3,2450.8,0.86169549]
[1730823774833,8.15912,2451.3,2450.8,0.86169549]
[1730823775169,8.15911,2451.3,2450.8,0.86169549]
[1730823775471,4.07955,2451.3,2450.8,0.86169549]
[1730823775676,8.15912,2451.3,2450.8,0.86169549]
[1730823775967,8.1591,2451.3,2450.8,0.86169549]
[1730823776450,8.1591,2451.3,2450.8,0.7801]
[1730823776927,4.07955,2451.3,2450.8,0.7801]
[1730823777129,4.07955,2451.3,2450.8,4.94198551]
[1730823777334,4.07955,2451.3,2450.9,0.7502]
[1730823777762,4.07931,2451.4,2450.9,5.15511254]
[1730823777964,4.07891,2451.7,2451.1,0.7502]
[1730823778132,4.07891,2451.7,2451.2,4.07962]
[1730823778331,4.07889,2451.7,2451.2,4.07962]
[1730823778558,4.07899,2451.6,2451.1,4.82999]
[1730823778759,8.15784,2451.7,2451.1,4.82999]
[1730823778956,4.07889,2451.7,2451.1,4.82999]
[1730823779163,4.07889,2451.7,2451.3,0.8286]
[1730823779541,4.07898,2451.6,2451.3,0.8286]
[1730823780104,4.07916,2451.5,2451.3,0.8286]
[1730823780376,8.15786,2451.7,2451.3,0.8286]
[1730823780529,4.07901,2451.6,2451.3,0.8286]
[1730823781134,4.07889,2451.7,2451.3,0.8286]
[1730823781359,4.07897,2451.6,2451.3,0.8286]
[1730823782979,4.07941,2451.4,2451.1,0.8312]
[1730823783174,4.07947,2451.3,2451.1,0.8312]
[1730823783691,0.8824,2451.8,2451.1,0.8312]
[1730823783848,4.07922,2451.5,2451.1,0.8312]
[1730823784794,4.07922,2451.5,2451.1,0.91278691]
[1730823785350,4.07922,2451.5,2451.1,0.8312]
[1730823785572,4.07931,2451.4,2451.1,0.8312]
[1730823785987,4.07922,2451.5,2451.2,0.06192664]
[1730823786151,4.07935,2451.4,2451.2,0.06192664]
[1730823786661,4.07946,2451.3,2451.2,0.06192664]
[1730823786990,4.07946,2451.3,2450.9,0.7827]
[1730823787152,4.07967,2451.2,2450.9,0.7827]
[1730823787567,4.07982,2451.1,2450.8,0.32509969]
[1730823787863,4.07997,2451.0,2450.7,4.72761119]
[1730823788966,0.815949,2451.1,2450.7,0.8198]
[1730823789161,4.07973,2451.2,2450.7,4.72761119]
[1730823789367,4.07989,2451.1,2450.7,4.72761119]
[1730823790515,4.07973,2451.2,2450.7,4.72761119]
[1730823790722,4.07999,2451.0,2450.7,4.72761119]
[1730823791806,4.07973,2451.2,2450.7,4.72761119]
[1730823792112,0.486743,2451.2,2450.7,0.8198]
[1730823792413,4.0803,2450.8,2450.5,1.10826616]
[1730823792812,4.0803,2450.8,2450.5,1.10820626]
[1730823792977,4.0803,2450.8,2450.5,0.7829]
[1730823793400,4.83136,2451.0,2450.5,0.7829]
[1730823793620,4.831,2451.3,2450.7,3.90781119]
[1730823793815,0.4831,2451.2,2450.7,3.90781119]
[1730823793981,4.0798,2451.1,2450.7,3.90781119]
[1730823795075,8.15969,2451.1,2450.7,3.90781119]
[1730823795501,4.0798,2451.1,2450.7,3.90781119]
[1730823795783,8.15968,2451.1,2450.7,3.90781119]
[1730823796311,0.939418,2451.1,2450.5,0.7829]
[1730823796498,4.08024,2450.9,2450.5,1.1082869]
[1730823797614,4.07982,2451.1,2450.7,3.90781119]
[1730823797782,4.07965,2451.2,2450.7,8.06985206]
[1730823798813,4.0798,2451.1,2450.7,3.98941206]
[1730823799685,4.07998,2451.0,2450.7,3.90781119]
[1730823799884,4.895958,2451.0,2450.6,0.783]
[1730823800085,4.08023,2450.9,2450.6,0.783]
[1730823800419,4.0803,2450.8,2450.6,1.1084103]
[1730823800608,4.08046,2450.7,2450.3,0.7954]
[1730823800920,4.08065,2450.6,2450.4,0.36684865]
[1730823801087,4.08065,2450.6,2450.4,0.42986692]
[1730823801088,8.977485,2450.6,2450.4,0.42986692]
[1730823801276,4.896755,2450.6,2450.4,0.38846306]
[1730823801479,4.896755,2450.6,2450.4,0.06301827]
[1730823802605,4.08079,2450.5,2450.4,0.06301827]
[1730823802805,4.896755,2450.6,2450.4,0.06301827]
[1730823803015,4.08041,2450.8,2450.1,8.81822119]
[1730823803317,3.00449941,2451.3,2450.6,0.8291]
[1730823803318,4.07974,2451.2,2450.6,0.8291]
[1730823803487,4.07973,2451.2,2450.6,4.90964]
[1730823803688,8.15947,2451.2,2450.7,3.9705797]
[1730823803922,4.07973,2451.2,2450.7,3.9705797]
[1730823804118,8.15948,2451.2,2450.7,3.9705797]
[1730823804323,4.07982,2451.1,2450.7,3.9705797]
[1730823804924,4.08023,2450.9,2450.7,0.06276851]
[1730823805117,4.08012,2451.0,2450.7,0.06276851]
[1730823805858,4.08025,2450.9,2450.7,0.06276851]
[1730823806498,4.0803,2450.8,2450.7,0.06276851]
[1730823806838,4.0803,2450.8,2450.4,4.72311119]
[1730823806994,4.08025,2450.9,2450.7,0.06271351]
[1730823807194,4.08025,2450.9,2450.5,0.32580335]
[1730823807195,4.896263,2450.9,2450.5,0.32580335]
[1730823807400,0.816013,2450.9,2450.8,0.0625908]
[1730823807623,4.896143,2450.9,2450.5,0.32576289]
[1730823808907,4.0803,2450.8,2450.4,4.72311119]
[1730823809105,4.08048,2450.7,2450.5,0.32573603]
[1730823809341,4.08048,2450.7,2450.4,0.8153]
[1730823809540,4.896344,2450.8,2450.4,0.8153]
[1730823809743,0.816044,2450.8,2450.4,0.8153]
[1730823809939,4.08014,2450.9,2450.4,0.8153]
[1730823810147,4.08044,2450.8,2450.4,0.8153]
[1730823811218,8.16036,2450.9,2450.4,0.8153]
[1730823811748,4.08039,2450.8,2450.4,0.8153]
[1730823812047,4.84751,2451.1,2450.4,5.13041952]
[1730823812254,4.07991,2451.1,2450.7,3.90781119]
[1730823812463,0.484751,2451.0,2450.7,0.7765]
[1730823812670,0.751,2451.3,2450.7,4.85696]
[1730823812965,4.07964,2451.2,2450.7,0.7765]
[1730823813261,4.0796,2451.3,2450.8,4.08029]
[1730823813563,1.18841149,2451.3,2450.7,0.7765]
[1730823813745,4.08005,2451.0,2450.7,0.7765]
[1730823814134,4.07982,2451.1,2450.7,0.7765]
[1730823814642,8.15972,2451.1,2450.7,0.7765]
[1730823814962,4.07982,2451.1,2450.7,0.7765]
[1730823815157,8.97569,2451.1,2450.7,0.7765]
[1730823815722,4.08007,2451.0,2450.7,0.7765]
[1730823815936,8.16019,2451.0,2450.7,0.7765]
[1730823816152,4.08007,2451.0,2450.8,0.06079955]
[1730823816530,4.08007,2451.0,2450.9,0.06067685]
[1730823816761,4.977645,2451.0,2450.9,0.06067685]
[1730823816965,4.977645,2451.0,2450.5,0.7512]
[1730823817117,4.977645,2451.0,2450.9,0.06067685]
[1730823817325,4.977645,2451.0,2450.5,0.7512]
[1730823817938,4.08021,2450.9,2450.6,0.38712992]
[1730823818266,4.08021,2450.9,2450.6,0.061045]
[1730823818765,5.751545,2451.0,2450.6,0.061045]
[1730823818973,4.08031,2450.8,2450.6,0.061045]
[1730823819167,8.16075,2450.8,2450.6,0.061045]
[1730823819320,8.16075,2450.8,2450.2,4.90128]
[1730823819321,4.0805,2450.7,2450.3,0.32614987]
[1730823819525,4.0805,2450.7,2450.4,0.32616978]
[1730823819722,4.08046,2450.7,2450.2,0.8201]
[1730823819966,4.08046,2450.7,2450.2,4.90133]
[1730823820123,4.08046,2450.7,2450.3,0.32619619]
[1730823820323,0.87359245,2450.7,2450.4,0.32619619]
[1730823820542,4.85397,2451.0,2450.5,0.7834]
[1730823820830,4.85397,2451.0,2450.5,4.86407]
[1730823821161,4.08007,2451.0,2450.5,0.7834]
[1730823821462,4.08021,2450.9,2450.5,0.7834]
[1730823821626,4.08007,2451.0,2450.5,0.7834]
[1730823821826,4.08016,2450.9,2450.5,0.7834]
[1730823822150,4.08007,2451.0,2450.5,0.7834]
[1730823823063,4.08006,2451.0,2450.5,0.7834]
[1730823824128,4.08013,2450.9,2450.5,0.7834]
[1730823824331,4.08006,2451.0,2450.5,0.7834]
[1730823824569,4.568146,2451.0,2450.5,0.7834]
[1730823824736,8.648226,2451.0,2450.5,0.7834]
[1730823825263,4.568146,2451.0,2450.5,0.7834]
[1730823825572,8.648236,2451.0,2450.5,0.7834]
[1730823826366,4.568146,2451.0,2450.5,0.7834]
[1730823826551,4.568146,2451.0,2450.5,4.86418]
[1730823826954,4.07983,2451.1,2450.5,4.86418]
[1730823827176,4.07983,2451.1,2450.6,4.08052]
[1730823828052,4.07983,2451.1,2451.0,0.05]
[1730823828288,6.64643018,2451.3,2451.0,0.05]
[1730823829386,4.0798,2451.1,2451.0,0.05]
[1730823829566,5.15242302,2451.1,2451.0,0.05]
[1730823830593,1.07262302,2451.1,2451.0,0.05]
[1730823830760,5.15242302,2451.1,2451.0,0.05]
[1730823831156,1.07262302,2451.1,2451.0,0.11052453]
[1730823831390,4.07967,2451.2,2451.0,0.05]
[1730823831690,8.15915,2451.3,2451.0,0.05]
[1730823831889,4.07956,2451.3,2451.1,0.06040184]
[1730823832055,4.07963,2451.2,2451.0,0.05]
[1730823832956,4.07956,2451.3,2451.0,0.05]
[1730823833277,5.26970434,2451.3,2451.0,0.05]
[1730823833455,4.07965,2451.2,2451.0,0.05]
[1730823833661,5.26970434,2451.3,2451.0,0.05]
[1730823833861,9.34926434,2451.3,2451.0,0.05]
[1730823834090,5.26970434,2451.3,2451.0,0.8125]
[1730823834598,2.56894135,2451.4,2451.1,7.98758119]
[1730823834819,2.56894135,2451.5,2451.2,0.7927]
[1730823834978,2.56894135,2451.6,2451.3,4.07945]
[1730823835303,2.56894135,2451.6,2451.2,0.7927]
[1730823835662,6.64793135,2451.6,2451.2,0.7927]
[1730823836067,2.56894135,2451.6,2451.2,0.7927]
[1730823836763,4.07881,2451.7,2451.2,0.7927]
[1730823836764,2.14095698,2451.3,2451.2,0.7927]
[1730823837066,4.07874,2451.8,2451.2,0.7927]
[1730823837265,2.14102383,2451.3,2451.2,0.7927]
[1730823838989,2.19102383,2451.4,2451.2,0.7927]
[1730823839505,0.05,2451.4,2451.2,0.7927]
[1730823840018,2.19102383,2451.4,2451.2,0.7927]
[1730823840169,0.05,2451.4,2451.2,0.7927]
[1730823840497,2.19102383,2451.5,2451.2,0.7927]
[1730823840863,0.05,2451.5,2451.2,0.7927]
[1730823841067,2.19025713,2451.6,2451.2,0.7927]
[1730823841491,0.05,2451.6,2451.2,0.7927]
[1730823842081,4.12897,2451.6,2451.2,0.7927]
[1730823843062,0.05,2451.6,2451.3,0.0815809]
[1730823843265,0.05,2451.6,2451.4,0.761]
[1730823843464,0.05,2451.7,2451.5,0.08157394]
[1730823843701,0.05,2451.7,2451.6,0.761]
[1730823846202,0.05,2451.7,2451.6,0.80318753]
[1730823848140,0.05,2451.9,2451.6,0.04218753]
[1730823848341,4.07863,2451.8,2451.6,0.04218753]
[1730823848647,4.07863,2451.8,2451.7,0.04206491]
[1730823848803,4.07857,2451.9,2451.7,0.04206491]
[1730823849004,8.15717,2451.9,2451.5,0.08157436]
[1730823849210,4.07857,2451.9,2451.8,0.04194229]
[1730823849540,8.15714,2451.9,2451.8,0.04194229]
[1730823849756,4.07865,2451.8,2451.5,0.08157436]
[1730823850259,0.05,2451.9,2451.8,4.89523]
[1730823850466,0.005,2452.2,2451.8,4.89523]
[1730823850467,0.05,2452.1,2451.9,0.8166]
[1730823850645,0.05,2452.1,2452.0,8.81826215]
[1730823850847,0.05,2452.1,2452.0,4.70003642]
[1730823851156,0.05,2452.1,2452.0,8.85988769]
[1730823851319,0.05,2452.1,2452.0,8.78833642]
[1730823851753,0.05,2452.1,2452.0,8.77833642]
[1730823855430,0.055,2452.2,2452.1,7.87413]
[1730823855625,0.055,2452.2,2452.1,7.91859712]
[1730823855867,0.055,2452.2,2452.1,7.90859712]
[1730823856457,0.055,2452.2,2452.1,7.89859712]
[1730823857052,0.055,2452.2,2452.1,3.82046712]
[1730823857260,0.055,2452.2,2452.1,7.89859712]
[1730823857663,0.055,2452.2,2452.1,0.82046712]
[1730823860738,0.055,2452.2,2452.1,0.04446712]
[1730823860943,0.055,2452.2,2451.9,0.7508]
[1730823861174,0.055,2452.2,2452.1,0.04383781]
[1730823861372,0.055,2452.2,2452.0,0.04396915]
[1730823861588,0.055,2452.2,2452.1,0.04383781]
[1730823861945,0.055,2452.2,2451.9,0.7508]
[1730823862279,0.055,2452.2,2452.0,0.04398273]
[1730823862475,4.62830372,2452.2,2451.6,0.7974]
[1730823862640,4.62830372,2452.2,2452.1,0.04390571]
[1730823862641,4.13298,2452.2,2452.1,0.04390571]
[1730823862837,4.13298,2452.2,2451.7,4.07871]
[1730823863044,4.13298,2452.2,2451.8,0.04429977]
[1730823863243,0.055,2452.2,2451.8,0.04429977]
[1730823863781,4.13299,2452.2,2451.8,0.04429977]
[1730823864075,0.055,2452.2,2451.8,0.04429977]
[1730823864441,4.13297,2452.2,2451.8,0.04429977]
[1730823866787,4.07813,2452.1,2451.8,0.04429977]
[1730823866957,0.7673,2452.0,2451.8,0.04429977]
[1730823867162,0.7673,2452.0,2451.6,4.87634]
[1730823867470,4.90027,2452.2,2451.7,4.12321115]
[1730823867993,8.97839,2452.2,2451.7,4.12321115]
[1730823868205,4.90027,2452.2,2451.7,4.12321115]
[1730823868712,0.055,2452.2,2451.9,4.07843]
[1730823868918,0.055,2452.2,2452.0,0.8199]
[1730823869195,0.055,2452.2,2452.1,0.08155259]
[1730823869360,0.055,2452.2,2452.1,4.15968259]
[1730823869565,0.055,2452.2,2452.1,4.20393686]
[1730823870109,0.055,2452.2,2452.1,4.12238427]
[1730823873083,0.055,2452.2,2452.1,4.92688427]
[1730823873286,0.055,2452.2,2452.1,8.25155221]
[1730823874596,0.055,2452.2,2452.1,8.2515585]
[1730823878139,0.055,2452.2,2452.1,7.92688427]
[1730823878271,0.055,2452.2,2452.1,8.00843143]
[1730823878473,0.055,2452.2,2452.1,8.33330985]
[1730823878674,0.055,2452.2,2452.1,8.25176269]
[1730823880291,1e-05,2452.2,2452.1,8.80640689]
[1730823880716,0.0602472,2452.4,2452.3,4.8925]
[1730823880873,0.0602472,2452.4,2452.3,12.12518961]
[1730823881082,0.0602472,2452.4,2452.3,12.17206307]
[1730823881324,7.2e-06,2452.4,2452.3,13.27670727]
[1730823881619,0.7798,2453.5,2453.1,4.0764]
[1730823882120,0.7798,2453.5,2453.2,4.1217547]
[1730823882617,0.7798,2453.5,2453.2,0.0454647]
[1730823883890,4.85561,2453.5,2452.9,4.07666]
[1730823884078,4.85561,2453.5,2452.8,4.07693]
[1730823884079,0.7706,2453.2,2452.8,4.07693]
[1730823884278,0.7706,2453.2,2452.7,4.07705]
[1730823884683,4.87379,2453.4,2452.9,4.0767]
[1730823884880,4.07614,2453.3,2452.7,4.07699]
[1730823885107,0.7978,2453.4,2452.6,3.7904]
[1730823885279,0.7978,2453.4,2452.9,8.15342]
[1730823885484,0.7978,2453.4,2452.9,4.07671]
[1730823885989,4.87382,2453.4,2452.8,0.8171]
[1730823886219,4.87382,2453.4,2452.8,4.07696]
[1730823886518,8.94989,2453.4,2452.8,4.07696]
[1730823886719,4.87382,2453.4,2452.8,4.07696]
[1730823886885,0.794,2453.2,2452.7,4.07698]
[1730823887214,0.794,2453.2,2452.8,4.07687]
[1730823888030,0.794,2453.2,2452.8,4.15839998]
[1730823888334,0.794,2453.2,2452.8,4.07687]
[1730823889031,0.794,2453.2,2452.9,4.07678]
[1730823889228,0.794,2453.2,2453.0,4.07661]
[1730823889731,0.794,2453.2,2452.9,4.07678]
[1730823889932,0.794,2453.2,2452.7,4.07698]
[1730823890143,0.794,2453.2,2452.9,4.0768]
[1730823890298,0.794,2453.2,2452.7,4.07698]
[1730823890909,0.794,2453.2,2452.9,4.07671]
[1730823891331,0.794,2453.2,2453.0,0.04911093]
[1730823892098,0.794,2453.2,2452.8,4.07694]
[1730823892448,0.794,2453.2,2453.1,0.04895782]
[1730823892645,0.794,2453.2,2452.8,4.07694]
[1730823892798,0.794,2453.2,2453.1,0.04895782]
[1730823893004,0.794,2453.2,2452.7,4.07713]
[1730823893342,4.87032,2453.2,2452.7,4.07713]
[1730823893638,5.764967,2453.2,2452.8,0.04941718]
[1730823893938,1.688647,2453.2,2452.7,4.07705]
[1730823894111,0.794,2453.2,2452.9,4.12596405]